bitfinex/quotes_SOLUSD_20230701
["timestamp","ask_amount","ask_price","bid_price","bid_amount"]
[1688176159009,22.804,18.55,18.541,55.0]
[1688176159308,22.804,18.55,18.54,22.815]
[1688176160511,22.804,18.55,18.541,55.0]
[1688176162697,22.804,18.55,18.541,88.65119922]
[1688176162899,22.804,18.55,18.542,20.0]
[1688176163212,22.804,18.55,18.543,77.81]
[1688176163411,22.804,18.55,18.543,55.0]
[1688176167517,22.804,18.55,18.542,55.0]
[1688176167915,22.804,18.55,18.536,120.7636]
[1688176168216,57.434,18.55,18.533,22.824]
[1688176168401,57.434,18.55,18.531,129.61239922]
[1688176168597,57.434,18.55,18.532,20.0]
[1688176168802,81.535,18.544,18.532,20.0]
[1688176169614,81.535,18.544,18.533,55.0]
[1688176170725,81.535,18.544,18.533,77.823]
[1688176170904,22.81,18.544,18.533,77.823]
[1688176171105,22.81,18.544,18.533,88.66019922]
[1688176171510,22.81,18.544,18.533,55.0]
[1688176172117,22.81,18.544,18.533,65.83719922]
[1688176172326,22.81,18.544,18.533,22.823]
[1688176173022,22.81,18.544,18.534,33.65819922]
[1688176173529,22.81,18.544,18.535,55.0]
[1688176174319,22.81,18.544,18.535,77.821]
[1688176175724,22.81,18.544,18.535,88.65819922]
[1688176178230,22.81,18.544,18.536,10.83719922]
[1688176178427,22.809,18.546,18.538,22.817]
[1688176178816,22.809,18.546,18.539,55.0]
[1688176179017,22.809,18.546,18.539,77.816]
[1688176179927,22.809,18.546,18.539,55.0]
[1688176182615,22.806,18.547,18.539,88.65319922]
[1688176182819,22.806,18.548,18.539,88.65319922]
[1688176183215,58.688,18.556,18.54,10.83719922]
[1688176183415,22.799,18.554,18.544,22.809]
[1688176183827,22.799,18.554,18.545,55.0]
[1688176184023,22.799,18.554,18.545,77.809]
[1688176184814,22.799,18.554,18.545,55.0]
[1688176185319,22.799,18.554,18.544,77.809]
[1688176186209,22.796,18.556,18.544,88.64619922]
[1688176186408,3.0699509,18.56,18.545,10.83719922]
[1688176186633,81.465,18.56,18.549,22.803]
[1688176186829,81.465,18.56,18.55,120.8363]
[1688176187031,81.465,18.56,18.551,55.0]
[1688176187529,81.465,18.56,18.55,55.0]
[1688176188216,81.465,18.56,18.549,55.0]
[1688176188610,81.465,18.56,18.549,77.804]
[1688176189033,55.0,18.562,18.549,88.64119922]
[1688176189329,22.788,18.562,18.554,22.798]
[1688176189535,22.788,18.562,18.555,77.796]
[1688176189734,22.787,18.563,18.555,77.796]
[1688176189937,22.787,18.563,18.555,22.796]
[1688176190119,22.787,18.563,18.556,55.0]
[1688176190419,22.787,18.563,18.556,77.795]
[1688176190619,22.787,18.563,18.556,55.0]
[1688176195422,22.787,18.563,18.555,55.0]
[1688176196134,22.787,18.563,18.555,77.796]
[1688176197738,58.651,18.568,18.555,77.796]
[1688176197933,22.783,18.566,18.555,88.63319922]
[1688176198139,22.782,18.568,18.556,10.83719922]
[1688176198321,22.782,18.568,18.559,22.791]
[1688176198521,22.782,18.568,18.56,55.0]
[1688176198840,22.782,18.568,18.562,22.788]
[1688176199028,22.782,18.568,18.563,55.0]
[1688176199228,165.613,18.574,18.563,77.787]
[1688176199229,55.0,18.574,18.563,77.787]
[1688176199539,22.766,18.58,18.564,10.83719922]
[1688176199852,22.766,18.58,18.568,22.78]
[1688176200046,22.766,18.58,18.569,55.0]
[1688176200236,77.787,18.581,18.572,22.775]
[1688176200433,22.765,18.581,18.572,22.775]
[1688176200638,22.765,18.581,18.573,55.0]
[1688176200844,58.594,18.586,18.574,22.772]
[1688176201032,58.594,18.586,18.575,55.0]
[1688176201236,22.764,18.582,18.576,22.771]
[1688176201438,22.764,18.582,18.577,55.0]
[1688176201643,22.763,18.583,18.577,77.769]
[1688176201830,22.763,18.583,18.577,55.0]
[1688176203250,22.763,18.583,18.571,94.2519]
[1688176203540,22.763,18.583,18.572,20.0]
[1688176204539,22.763,18.583,18.572,42.775]
[1688176205052,22.763,18.583,18.573,55.0]
[1688176205551,22.763,18.583,18.572,20.0]
[1688176207148,22.763,18.583,18.573,55.0]
[1688176207681,22.763,18.583,18.572,22.776]
[1688176207855,30.88346,18.582,18.567,22.782]
[1688176208155,81.386,18.578,18.567,22.782]
[1688176209553,22.769,18.578,18.567,22.782]
[1688176209760,22.769,18.578,18.568,55.0]
[1688176209940,22.769,18.578,18.57,22.778]
[1688176210140,22.769,18.578,18.571,55.0]
[1688176210458,22.769,18.578,18.571,77.776]
[1688176210851,22.765,18.581,18.572,20.0]
[1688176211056,22.765,18.581,18.574,22.772]
[1688176211252,22.763,18.583,18.575,55.0]
[1688176212262,22.763,18.583,18.575,77.772]
[1688176212549,22.763,18.583,18.572,22.776]
[1688176212755,22.763,18.583,18.573,55.0]
[1688176212938,22.763,18.583,18.572,55.0]
[1688176213141,22.763,18.583,18.572,77.775]
[1688176213652,22.763,18.583,18.572,88.61219922]
[1688176213856,22.763,18.583,18.572,33.61219922]
[1688176214052,22.763,18.583,18.573,55.0]
[1688176214256,22.763,18.583,18.575,22.771]
[1688176214442,22.763,18.583,18.576,55.0]
[1688176215844,22.763,18.583,18.572,10.83719922]
[1688176216055,22.763,18.583,18.573,77.773]
[1688176216558,22.763,18.583,18.573,55.0]
[1688176216762,22.763,18.583,18.572,55.0]
[1688176217140,22.763,18.583,18.572,77.776]
[1688176217658,22.763,18.583,18.572,88.61319922]
[1688176218461,22.761,18.585,18.573,10.83719922]
[1688176218668,22.761,18.585,18.576,22.77]
[1688176219051,22.759,18.586,18.577,55.0]
[1688176219251,22.759,18.586,18.579,22.766]
[1688176219455,22.759,18.586,18.577,77.769]
[1688176220160,58.588,18.589,18.577,77.769]
[1688176220364,58.588,18.589,18.577,88.60619922]
[1688176221056,58.588,18.589,18.578,10.83719922]
[1688176221256,58.588,18.589,18.581,22.764]
[1688176221447,22.752,18.592,18.582,20.0]
[1688176221650,22.752,18.592,18.585,22.76]
[1688176221956,22.752,18.592,18.586,55.0]
[1688176222351,22.752,18.592,18.583,22.762]
[1688176222569,22.752,18.592,18.584,55.0]
[1688176222951,22.752,18.592,18.582,22.763]
[1688176222952,22.752,18.592,18.583,55.0]
[1688176223755,22.752,18.592,18.578,22.768]
[1688176224059,6.76725153,18.591,18.578,22.768]
[1688176224255,22.755,18.589,18.578,22.768]
[1688176224449,22.755,18.589,18.579,30.83719922]
[1688176224668,22.755,18.589,18.577,22.768]
[1688176224851,4.65431529,18.588,18.577,22.768]
[1688176225058,22.76,18.585,18.575,22.771]
[1688176227869,22.76,18.585,18.576,55.0]
[1688176228650,22.76,18.585,18.573,94.0525]
[1688176228851,9.91610623,18.584,18.568,22.78]
[1688176229065,22.766,18.581,18.571,118.8755]
[1688176229276,22.766,18.581,18.572,20.0]
[1688176229970,22.766,18.581,18.573,55.0]
[1688176230361,22.766,18.581,18.572,20.0]
[1688176231874,22.766,18.581,18.573,55.0]
[1688176235774,22.766,18.581,18.573,77.774]
[1688176235961,22.763,18.583,18.573,77.774]
[1688176237172,22.763,18.583,18.565,26.61157164]
[1688176237471,34.57,18.58,18.566,30.0]
[1688176237683,81.395,18.576,18.566,30.0]
[1688176237983,22.771,18.576,18.566,122.27519922]
[1688176238279,22.771,18.576,18.566,92.27519922]
[1688176238577,22.77,18.577,18.566,92.27519922]
[1688176238879,22.77,18.577,18.57,22.778]
[1688176239181,22.77,18.577,18.571,55.0]
[1688176241372,22.77,18.577,18.561,90.7623]
[1688176241578,3.0699509,18.576,18.562,20.0]
[1688176241783,81.412,18.572,18.562,20.0]
[1688176242582,81.412,18.572,18.562,42.787]
[1688176242756,81.412,18.572,18.563,55.0]
[1688176242957,22.776,18.572,18.563,55.0]
[1688176243270,22.776,18.572,18.563,77.786]
[1688176245478,22.776,18.572,18.563,88.62319922]
[1688176248267,22.776,18.572,18.563,55.0]
[1688176253181,22.776,18.572,18.563,77.787]
[1688176254574,22.776,18.572,18.563,55.0]
[1688176256888,22.776,18.572,18.563,77.787]
[1688176261283,22.776,18.572,18.563,55.0]
[1688176265879,165.583,18.577,18.563,77.786]
[1688176266092,22.774,18.574,18.563,77.786]
[1688176270098,22.772,18.576,18.563,77.786]
[1688176274701,3.0699509,18.575,18.563,77.786]
[1688176274902,22.775,18.573,18.563,77.786]
[1688176279492,22.775,18.573,18.563,104.33285852]
[1688176279688,22.775,18.573,18.563,49.33285852]
[1688176280102,22.775,18.573,18.563,22.786]
[1688176281607,22.775,18.573,18.564,55.0]
[1688176281813,22.775,18.573,18.563,77.786]
[1688176284517,22.772,18.576,18.563,77.786]
[1688176286718,22.772,18.576,18.564,30.0]
[1688176287021,22.772,18.576,18.567,22.781]
[1688176287226,22.772,18.576,18.568,55.0]
[1688176287519,22.772,18.576,18.57,22.778]
[1688176287817,22.772,18.576,18.571,55.0]
[1688176288401,22.772,18.576,18.57,55.0]
[1688176301313,22.772,18.576,18.562,20.0]
[1688176301627,81.414,18.572,18.562,20.0]
[1688176303532,81.414,18.572,18.563,55.0]
[1688176303914,22.776,18.572,18.563,77.786]
[1688176307230,106.935,18.582,18.563,77.786]
[1688176307540,172.62,18.59,18.563,77.786]
[1688176307541,9.37720853,18.581,18.564,84.49719922]
[1688176307832,22.766,18.581,18.569,81.424]
[1688176308035,22.766,18.581,18.57,75.0]
[1688176308333,22.766,18.581,18.573,22.774]
[1688176308536,22.766,18.581,18.574,77.772]
[1688176309816,22.766,18.581,18.574,55.0]
[1688176310536,22.766,18.581,18.573,55.0]
[1688176311522,22.766,18.581,18.573,77.774]
[1688176313036,22.766,18.581,18.572,22.776]
[1688176314440,22.766,18.581,18.573,55.0]
[1688176314625,22.766,18.581,18.573,77.774]
[1688176315740,22.766,18.581,18.571,22.776]
[1688176316038,22.766,18.581,18.572,75.0]
[1688176316238,22.766,18.581,18.572,97.775]
[1688176317941,22.766,18.581,18.564,27.53302122]
[1688176318135,37.6399509,18.58,18.567,52.781]
[1688176318442,22.771,18.577,18.567,30.0]
[1688176318626,7.31783502,18.576,18.566,22.783]
[1688176318823,22.774,18.573,18.566,22.783]
[1688176319023,58.619,18.578,18.566,22.783]
[1688176319225,22.773,18.575,18.566,22.783]
[1688176319428,22.773,18.575,18.567,55.0]
[1688176319629,22.773,18.575,18.569,22.779]
[1688176319843,22.773,18.575,18.57,55.0]
[1688176320041,58.61,18.581,18.57,77.778]
[1688176320229,22.769,18.578,18.57,77.778]
[1688176322039,22.769,18.578,18.57,55.0]
[1688176323841,22.762,18.584,18.57,122.87519922]
[1688176324152,22.763,18.583,18.576,22.771]
[1688176324335,22.763,18.583,18.577,55.0]
[1688176324837,22.763,18.583,18.575,22.772]
[1688176324838,22.763,18.583,18.576,77.77]
[1688176327453,22.763,18.583,18.571,10.83719922]
[1688176327635,4.08999777,18.582,18.573,22.774]
[1688176327941,22.767,18.58,18.573,22.774]
[1688176328835,22.767,18.58,18.574,55.0]
[1688176330447,81.364,18.587,18.574,77.773]
[1688176330645,6.11059553,18.586,18.574,77.773]
[1688176331531,22.762,18.584,18.574,77.773]
[1688176332534,4.12303919,18.583,18.574,77.773]
[1688176332737,22.766,18.581,18.574,77.773]
[1688176333348,22.766,18.581,18.574,55.0]
[1688176333542,22.766,18.581,18.573,55.0]
[1688176333748,22.766,18.581,18.569,97.1522]
[1688176333951,3.0699509,18.58,18.57,20.0]
[1688176334250,22.77,18.577,18.57,20.0]
[1688176335034,22.768,18.579,18.571,55.0]
[1688176335240,22.768,18.579,18.572,42.775]
[1688176335445,22.768,18.579,18.573,55.0]
[1688176336362,22.766,18.581,18.573,77.774]
[1688176337152,55.0,18.587,18.573,77.774]
[1688176337354,7.60074815,18.586,18.573,77.774]
[1688176337652,22.759,18.586,18.573,88.61119922]
[1688176338051,22.759,18.586,18.577,22.769]
[1688176338246,22.759,18.586,18.578,77.767]
[1688176338447,22.759,18.586,18.578,55.0]
[1688176342148,22.759,18.586,18.577,55.0]
[1688176343745,22.759,18.586,18.576,97.6054]
[1688176344561,3.87355669,18.585,18.576,97.6054]
[1688176344747,81.367,18.583,18.576,97.6054]
[1688176345245,81.367,18.583,18.577,55.0]
[1688176346557,81.367,18.583,18.572,20.0]
[1688176346758,5.03447009,18.582,18.572,20.0]
[1688176346957,81.381,18.579,18.569,20.0]
[1688176347765,3.0699509,18.578,18.569,20.0]
[1688176347956,22.772,18.576,18.567,20.0]
[1688176348164,22.772,18.576,18.568,30.0]
[1688176348346,22.772,18.576,18.569,20.0]
[1688176348747,22.772,18.576,18.57,55.0]
[1688176349047,22.772,18.576,18.571,20.0]
[1688176349251,22.772,18.576,18.572,55.0]
[1688176354962,58.604,18.583,18.572,55.0]
[1688176355163,22.768,18.578,18.572,55.0]
[1688176355359,22.766,18.58,18.572,77.775]
[1688176355665,22.766,18.58,18.572,88.61219922]
[1688176357159,22.766,18.58,18.572,33.61219922]
[1688176357366,22.766,18.58,18.573,55.0]
[1688176357549,22.766,18.58,18.573,77.774]
[1688176359861,22.766,18.58,18.573,88.61119922]
[1688176361167,106.918,18.585,18.573,88.61119922]
[1688176361370,22.764,18.582,18.574,10.83719922]
[1688176361578,22.764,18.582,18.575,77.772]
[1688176367173,58.592,18.586,18.575,77.772]
[1688176367467,22.762,18.583,18.575,77.772]
[1688176370175,22.761,18.585,18.575,77.772]
[1688176370467,22.758,18.587,18.576,10.83719922]
[1688176370674,22.758,18.587,18.577,55.0]
[1688176370859,22.758,18.587,18.58,22.766]
[1688176371060,22.758,18.587,18.581,55.0]
[1688176372964,22.758,18.587,18.58,55.0]
[1688176374374,22.758,18.587,18.579,55.0]
[1688176374673,22.758,18.587,18.578,55.0]
[1688176376075,22.758,18.587,18.578,77.768]
[1688176378461,22.758,18.587,18.578,55.0]
[1688176379676,22.758,18.587,18.578,77.768]
[1688176382182,22.758,18.587,18.576,99.9365]
[1688176382381,4.17319773,18.586,18.575,22.772]
[1688176382589,22.763,18.583,18.575,119.1223]
[1688176382780,22.763,18.583,18.575,96.3503]
[1688176384981,22.763,18.583,18.576,55.0]
[1688176386273,34.54,18.59,18.576,55.0]
[1688176386483,34.54,18.59,18.576,77.77]
[1688176386685,22.76,18.585,18.576,88.60719922]
[1688176388481,22.759,18.586,18.577,10.83719922]
[1688176388684,22.759,18.586,18.58,22.766]
[1688176389070,22.759,18.586,18.581,55.0]
[1688176393391,22.759,18.586,18.575,129.95849922]
[1688176393582,4.42015222,18.585,18.576,55.0]
[1688176393787,22.763,18.583,18.576,55.0]
[1688176395175,22.763,18.583,18.575,129.95849922]
[1688176395374,20.0,18.582,18.567,22.782]
[1688176395600,81.392,18.577,18.568,30.0]
[1688176396381,3.0699509,18.576,18.567,97.1332]
[1688176396581,22.774,18.574,18.567,97.1332]
[1688176396778,22.774,18.574,18.561,10.83719922]
[1688176396779,3.0699509,18.573,18.561,10.83719922]
[1688176396995,3.0699509,18.573,18.562,50.0]
[1688176397295,22.777,18.572,18.565,22.784]
[1688176397474,22.777,18.572,18.566,77.783]
[1688176399301,22.777,18.572,18.566,55.0]
[1688176399497,22.777,18.572,18.565,55.0]
[1688176404487,22.777,18.572,18.565,77.784]
[1688176412595,22.777,18.572,18.55,175.72]
[1688176412797,22.777,18.572,18.559,30.0]
[1688176413101,22.777,18.572,18.56,20.0]
[1688176413403,22.781,18.568,18.56,42.79]
[1688176414008,22.781,18.568,18.561,55.0]
[1688176414209,22.781,18.568,18.562,20.0]
[1688176414397,22.781,18.568,18.563,55.0]
[1688176416900,22.78,18.569,18.563,55.0]
[1688176417891,22.78,18.569,18.563,77.786]
[1688176418409,58.625,18.576,18.563,77.786]
[1688176418708,61.6949509,18.576,18.563,77.786]
[1688176419499,22.775,18.573,18.563,77.786]
[1688176419705,3.0699509,18.572,18.563,77.786]
[1688176419901,22.777,18.571,18.563,77.786]
[1688176421412,22.776,18.573,18.563,77.786]
[1688176421716,22.775,18.573,18.563,77.786]
[1688176423894,3.0699509,18.575,18.563,77.786]
[1688176424098,25.8419509,18.575,18.563,77.786]
[1688176427517,36.7254109,18.575,18.563,77.786]
[1688176431216,36.7254109,18.575,18.563,55.0]
[1688176431522,36.7254109,18.575,18.562,42.787]
[1688176431923,22.778,18.571,18.562,42.787]
[1688176433028,33.66545,18.574,18.563,55.0]
[1688176433214,3.0699509,18.573,18.566,22.783]
[1688176433527,22.775,18.573,18.566,22.783]
[1688176433717,22.775,18.573,18.565,22.784]
[1688176435225,22.775,18.573,18.564,22.785]
[1688176435527,22.778,18.571,18.565,55.0]
[1688176438130,22.778,18.571,18.564,22.785]
[1688176438630,22.778,18.571,18.565,55.0]
[1688176438825,22.774,18.574,18.566,22.782]
[1688176439034,22.774,18.574,18.567,55.0]
[1688176439229,3.0699509,18.577,18.567,77.781]
[1688176439527,48.6139509,18.577,18.567,77.781]
[1688176441233,48.6139509,18.577,18.564,97.3521]
[1688176441436,48.6139509,18.577,18.562,20.0]
[1688176441614,48.6139509,18.577,18.561,20.0]
[1688176442432,48.6139509,18.577,18.562,55.0]
[1688176442836,48.6139509,18.577,18.564,22.785]
[1688176443131,48.6139509,18.577,18.566,22.783]
[1688176443319,48.6139509,18.577,18.567,55.0]
[1688176443914,25.8439509,18.577,18.567,77.781]
[1688176444337,22.774,18.577,18.567,136.433]
[1688176444633,58.593,18.586,18.567,147.27019922]
[1688176444843,22.762,18.584,18.57,34.56]
[1688176445131,22.762,18.584,18.574,22.773]
[1688176445321,22.762,18.584,18.575,55.0]
[1688176445521,4.74425492,18.587,18.575,77.771]
[1688176445738,22.761,18.584,18.575,77.771]
[1688176447741,22.761,18.584,18.571,116.2632]
[1688176448028,81.377,18.58,18.569,22.778]
[1688176448232,81.377,18.58,18.569,121.0843]
[1688176448233,6.46191748,18.579,18.569,121.0843]
[1688176448436,10.90422,18.584,18.572,22.775]
[1688176448437,58.601,18.584,18.572,22.775]
[1688176448617,22.766,18.581,18.575,22.772]
[1688176448821,6.73019805,18.589,18.575,22.772]
[1688176449022,22.76,18.586,18.579,22.767]
[1688176449240,22.76,18.586,18.58,55.0]
[1688176449734,22.76,18.586,18.578,22.768]
[1688176449735,22.76,18.586,18.579,55.0]
[1688176450538,22.76,18.586,18.578,55.0]
[1688176451537,22.76,18.586,18.575,22.771]
[1688176451733,5.42744162,18.585,18.575,22.771]
[1688176451937,22.763,18.582,18.575,22.771]
[1688176452418,22.763,18.582,18.573,22.773]
[1688176453033,22.763,18.582,18.574,55.0]
[1688176453538,22.763,18.582,18.573,22.773]
[1688176453539,22.763,18.582,18.571,95.4273]
[1688176453842,4.66947676,18.581,18.572,20.0]
[1688176454023,81.383,18.579,18.572,20.0]
[1688176455351,81.383,18.579,18.571,95.4273]
[1688176455544,81.383,18.579,18.569,22.778]
[1688176455837,22.771,18.576,18.57,55.0]
[1688176456035,22.771,18.576,18.569,55.0]
[1688176456442,22.771,18.576,18.564,93.0811]
[1688176456644,3.0699509,18.575,18.564,93.0811]
[1688176456837,22.776,18.572,18.564,93.0811]
[1688176458436,22.776,18.572,18.564,115.8661]
[1688176458630,22.776,18.572,18.565,55.0]
[1688176458831,22.776,18.572,18.565,77.784]
[1688176461847,22.776,18.572,18.565,55.0]
[1688176462340,22.771,18.576,18.565,77.784]
[1688176462550,8.55828484,18.583,18.565,88.62119922]
[1688176462730,9.18370935,18.581,18.565,88.62119922]
[1688176462933,31.94870935,18.581,18.57,34.56]
[1688176463133,31.94870935,18.581,18.573,22.774]
[1688176463337,22.765,18.581,18.573,22.774]
[1688176463543,58.594,18.586,18.574,55.0]
[1688176463544,5.06369597,18.585,18.574,55.0]
[1688176463734,22.763,18.583,18.577,22.769]
[1688176463934,22.763,18.583,18.578,55.0]
[1688176464539,22.763,18.583,18.577,55.0]
[1688176465449,22.763,18.583,18.574,22.772]
[1688176465634,22.763,18.583,18.575,55.0]
[1688176466837,22.763,18.583,18.575,77.771]
[1688176470383,58.594,18.589,18.575,77.771]
[1688176470666,7.79401336,18.588,18.575,77.771]
[1688176470961,58.572,18.593,18.576,10.83719922]
[1688176471251,22.757,18.588,18.58,22.765]
[1688176471754,22.757,18.588,18.581,55.0]
[1688176472344,22.757,18.588,18.58,22.765]
[1688176472537,22.757,18.588,18.581,55.0]
[1688176475561,22.757,18.588,18.581,77.765]
[1688176476461,22.757,18.588,18.581,55.0]
[1688176476642,22.757,18.588,18.58,55.0]
[1688176476843,22.757,18.588,18.58,77.766]
[1688176478158,22.757,18.588,18.58,55.0]
[1688176480168,22.757,18.588,18.579,55.0]
[1688176481265,5.35798115,18.587,18.579,55.0]
[1688176481460,5.35798115,18.587,18.576,22.771]
[1688176481646,22.761,18.584,18.576,22.771]
[1688176483056,22.761,18.584,18.577,55.0]
[1688176486766,81.359,18.584,18.571,96.8491]
[1688176486952,9.6820674,18.583,18.563,58.662]
[1688176487264,22.77,18.577,18.567,22.781]
[1688176487448,9.6820674,18.576,18.566,105.30489922]
[1688176487653,22.774,18.573,18.566,105.30489922]
[1688176487964,22.774,18.573,18.566,33.62019922]
[1688176488169,22.774,18.573,18.567,55.0]
[1688176488354,22.774,18.573,18.567,77.782]
[1688176490470,9.6820674,18.576,18.567,77.782]
[1688176490674,9.6820674,18.579,18.567,88.61919922]
[1688176490867,58.603,18.583,18.567,88.61919922]
[1688176490868,12.80432383,18.582,18.568,10.83719922]
[1688176491170,22.767,18.579,18.572,22.775]
[1688176491466,22.767,18.579,18.573,55.0]
[1688176491973,22.767,18.579,18.573,77.774]
[1688176492157,22.765,18.581,18.573,55.0]
[1688176492474,22.765,18.581,18.573,22.774]
[1688176492768,22.765,18.581,18.574,55.0]
[1688176493470,22.765,18.581,18.574,77.773]
[1688176495375,35.56732383,18.583,18.574,77.773]
[1688176502189,35.56732383,18.583,18.568,22.78]
[1688176502395,35.56732383,18.583,18.562,95.5982]
[1688176502396,34.51,18.58,18.562,95.5982]
[1688176502680,22.773,18.575,18.562,95.5982]
[1688176503075,12.80432383,18.574,18.562,95.5982]
[1688176503267,22.778,18.571,18.562,118.3862]
[1688176503668,12.80432383,18.57,18.562,118.3862]
[1688176503973,35.58332383,18.57,18.562,118.3862]
[1688176504176,22.779,18.57,18.562,118.3862]
[1688176504584,22.779,18.57,18.563,55.0]
[1688176504771,22.779,18.57,18.563,77.786]
[1688176505277,22.779,18.57,18.563,22.786]
[1688176505479,22.779,18.57,18.562,118.3862]
[1688176506286,22.779,18.57,18.562,22.788]
[1688176507685,22.779,18.57,18.556,151.0435]
[1688176507878,12.80432383,18.569,18.556,151.0435]
[1688176508070,22.783,18.566,18.558,22.792]
[1688176509077,22.783,18.566,18.559,55.0]
[1688176509278,22.783,18.566,18.559,77.791]
[1688176509481,22.783,18.566,18.559,55.0]
[1688176509679,22.783,18.566,18.558,55.0]
[1688176509889,12.80432383,18.565,18.558,55.0]
[1688176510090,22.787,18.563,18.558,55.0]
[1688176510289,22.783,18.568,18.557,55.0]
[1688176510588,22.786,18.564,18.557,55.0]
[1688176510992,22.786,18.564,18.555,22.796]
[1688176511176,12.80432383,18.563,18.555,22.796]
[1688176511381,22.789,18.562,18.555,22.796]
[1688176513488,12.80432383,18.566,18.556,55.0]
[1688176513694,22.785,18.565,18.557,22.793]
[1688176513993,58.653,18.567,18.557,22.793]
[1688176513994,35.59032383,18.564,18.557,22.793]
[1688176514195,22.786,18.564,18.557,22.793]
[1688176514886,22.786,18.564,18.558,55.0]
[1688176515091,12.80432383,18.567,18.558,77.793]
[1688176515603,12.80432383,18.569,18.558,77.793]
[1688176516181,71.44932383,18.569,18.558,77.793]
[1688176516998,22.782,18.567,18.558,77.793]
[1688176517994,12.80432383,18.566,18.558,77.793]
[1688176518200,22.785,18.565,18.558,77.793]
[1688176519403,22.785,18.565,18.558,55.0]
[1688176521681,12.80432383,18.564,18.557,55.0]
[1688176521882,22.788,18.562,18.557,55.0]
[1688176524291,22.788,18.562,18.556,22.794]
[1688176524679,22.788,18.562,18.552,10.83719922]
[1688176524680,22.788,18.562,18.552,22.799]
[1688176524884,20.0,18.561,18.552,22.799]
[1688176525085,12.80432383,18.561,18.552,22.799]
[1688176525604,22.79,18.561,18.553,5.15724909]
[1688176525905,22.79,18.561,18.554,22.797]
[1688176526194,22.79,18.561,18.551,25.5914526]
[1688176526506,12.80432383,18.56,18.552,20.0]
[1688176526796,35.59532383,18.56,18.553,22.799]
[1688176526998,22.791,18.56,18.553,22.799]
[1688176527199,35.59332383,18.562,18.553,22.799]
[1688176527397,12.80432383,18.568,18.553,22.799]
[1688176527588,12.80432383,18.572,18.558,188.541]
[1688176527786,22.779,18.569,18.559,55.0]
[1688176527991,22.779,18.569,18.562,22.787]